Workbook

Sheet READ ME
C2: Read Me Sheet
C7: MARKET – Market Assessment Tool
C9: Introduction
C10: This tool complements the module MARKET in the SPIS Toolbox. The tool serves to determine geophysical parameters highlighted as make or break. If any of the parameters scores a 0, the area is considered to have very poor potential for SPIS. A ‘yes’ from this evaluation allows consideration of other parameters.
C12: Tips & Tricks
C21: Overview
C22: This tool comprises the following sheets:
C23: Input_Pre-check: Allows a first check for SPIS suitability to proceed with the assessment
C24: Input_Weight setting: Provides a description of parameters and allows for adjusting weights
C25: Input_Geophysical Conditions: For defining geophysical parameters in the target area
C26: Input_Business Conditions: For defining business relevant parameters relevant to the target area
C27: Output_Results: Shows graphic overview of the market potential of SPIS within an area
C29: About
C30: Published by: | D30: GIZ & FAO
C31: Responsible: | D31: GIZ Project Sustainable Energy for Food - Powering Agriculture Rebecca Navarro
C32: Contact: | D32: Powering.Agriculture@giz.de
C33: Download link: | D33: https://energypedia.info/wiki/Toolbox_on_SPIS
C34: About: | D34: Powering Agriculture: An Energy Grand Challenge for Development. Available at: https://poweringag.org
C35: Version: | D35: 1.3 (January 2019)
C36: The Toolbox on Solar Powered Irrigation Systems is made possible through the global initiative Powering Agriculture: An Energy Grand Challenge for Development (PAEGC). In 2012, the United States Agency for International Development (USAID), the Swedish International Development Cooperation Agency (Sida), the German Federal Ministry for Economic Cooperation and Development (BMZ), Duke Energy, and the Overseas Private Investment Cooperation (OPIC) combined resources to create the PAEGC initiative. The objective of PAEGC is to support new and sustainable approaches to accelerate the development and deployment of clean energy solutions for increasing agriculture productivity and/or value for farmers and agribusinesses in developing countries and emerging regions that lack access to reliable, affordable clean energy.
C37: The designations employed and the presentation of material in this information product do not imply the expression of any opinion whatsoever on the part of Deutsche Gesellschaft für Internationale Zusammenarbeit (GIZ) GmbH, Food and Agriculture Organization of the United Nations (FAO) or any of the PAEGC Founding Partners concerning the legal or development status of any country, territory, city or area or of its authorities, or concerning the delimitation of its frontiers or boundaries. The mention of specific companies or products of manufacturers, whether or not these have been patented, does not imply that these have been endorsed or recommended by GIZ, FAO, or any of the PAEGC Founding Partners in preference to others of a similar nature that are not mentioned. The views expressed in this information product are those of the author and do not necessarily reflect the views or policies of GIZ, FAO, or any of the PAEGC Founding Partners.
C38: GIZ, FAO and the PAEGC Founding Partners encourage the use, reproduction and dissemination of material in this information product. Except where otherwise indicated, material may be copied, downloaded and printed for private study, research and teaching purposes, or for use in non-commercial products or services, provided that appropriate acknowledgement of GIZ and FAO as the source and copyright holder is given.
C39: © GIZ and FAO, 2018

Sheet INPUT_Pre-check
E2: INPUT - First Pre-Check
B6: Country: | D6: Angola
B7: Specific area of interest:
B8: Assessment date:
B9: Assessor name:
A11: 1 | B11: Critical Geophysical Parameters | O11: Highest Possible Score | P11: Attained Score
O12: 9 | P12: =IF(COUNTIF(S14:S17,0)=0,S14+S15+S16,0) -> 7
B13: Questions | C13: Sample Data Sources | O13: Answer | P13: Suitability | R13: Parameter | S13: Score | T13: Raw Score
A14: a) | B14: ="What is the major land cover found in the area?" -> What is the major land cover found in the area? | C14: Global Land Cover | O14: Medium forest open to closed (tree cover above 40%) | P14: =VLOOKUP(O14,'Lists 2'!A:B,2,0) -> Marginally Suitable | R14: Land Cover | S14: =IF(P14="Highly Suitable", "3", IF(P14="Moderately Suitable", "2", IF(P14="Marginally Suitable", "1", "0"))) -> 1 | T14: =IF(COUNTIF(S14:S17,0)=0,S14+S15+S16,0) -> 7
A15: b) | B15: ="What is the average annual solar irradiation in the area? (kWh/kW peak - PVOUT value)" -> What is the average annual solar irradiation in the area? (kWh/kW peak - PVOUT value) | C15: World Bank Solar map | O15: Above 1460 | P15: =IF(O15="0 - 948", "Not Suitable", IF(O15="949 - 1094", "Marginally Suitable", IF(O15="1095 - 1460", "Moderately Suitable", "Highly Suitable"))) -> Highly Suitable | R15: Solar Irradiation | S15: =IF(O15="Above 1460", "3", IF(O15="1095 - 1460", "2", IF(O15="949 - 1094", "1", "0"))) -> 3
A16: c) | B16: ="What are the average monthly temperature and precipitation values in "&'INPUT_Pre-check'!D6&"?" -> What are the average monthly temperature and precipitation values in Angola? | C16: World Bank Global Precipitation Data | P16: =IF(O19=0, "Low Irrigation Requirement",IF(O19=1,"Marginally Suitable",IF(O19=2,"Moderately Suitable","Highly Suitable"))) -> Highly Suitable | R16: Precipitation | S16: =IF(P16="Moderately Suitable",2,IF(P16="Marginally Suitable",1,IF(P16="Low Irrigation Requirement",0,3))) -> 3
C17: J | D17: F | E17: M | F17: A | G17: M | H17: J | I17: J | J17: A | K17: S | L17: O | M17: N | N17: D | O17: Amount of arid months:
B19: Monthly average temperature (°C) | C19: 23 | D19: 23 | E19: 23 | F19: 22 | G19: 25 | H19: 18 | I19: 17 | J19: 19.5 | K19: 22.9 | L19: 24.9 | M19: 24.4 | N19: 23.3 | O19: =COUNTIF(C21:N21,">0") -> 5 | R19: Tavg | S19: =AVERAGE(C19:N19) -> 22.16666667 | T19: TSD | U19: =STDEV(C19:N19) -> 2.621357502
B20: Monthly average precipitation (mm) | C20: 221 | D20: 195 | E20: 157 | F20: 43 | G20: 6 | H20: 0 | I20: 0 | J20: 0 | K20: 3.6 | L20: 27.4 | M20: 107.6 | N20: 214.8 | R20: Pavg | S20: =AVERAGE(C20:N20) -> 81.28333333 | T20: PSD | U20: =STDEV(C20:N20) -> 91.74904343
B21: Aridity Index (Harouna & Carlson 1994) | C21: =((C19-$S$19)/$U$19)-((C20-$S$20)/$U$20) -> -1.20491189 | D21: =((D19-$S$19)/$U$19)-((D20-$S$20)/$U$20) -> -0.9215301891 | E21: -0.5073569336 | F21: 0.3536811007 | G21: 1.901400256 | H21: -0.703576091 | I21: -1.085057823 | J21: -0.131353493 | K21: 1.12644693 | L21: 1.630007144 | M21: 0.5651427233 | N21: -1.022891734 | O21: http://agron-www.agron.iastate.edu/courses/Agron541/classes/541/lesson04a/4a.3.html
B22: =IF(P12=0,"Critical Geophysical Parameters NOT IDEAL for SPIS","Proceed to INPUT_Weight Setting") -> Proceed to INPUT_Weight Setting
F28: Not Suitable
F29: Marginally Suitable
F30: Moderately Suitable
F31: Highly Suitable

Sheet INPUT_Weight setting
D2: INPUT - Weight Setting
B6: Geophysical Parameters:
B7: Non-critical Geophysical Parameters
B8: Additional parameters that are key to the market assessment for SPIS. These do not affect the general viability of SPIS; they affect the success of SPIS adoption in a region as per prevailing geophysical conditions (e.g. groundwater table, frost occurence, topography, agricultural production farming system, etc.).
B9: Important
B10: =H40 -> 0.1363636364
B12: Business Conditions:
B13: 1. Government Interventions | D13: 2. Development Organizations Interventions | F13: 3. Financing
B14: Evaluation of government interventions as a business environment parameter for SPIS, looking at policies, rules and regulations that govern the irrigation and solar sectors. | D14: This section evaluates interventions by development organizations that can present a significant influence on the adoption of SPIS within a country or region. | F14: The parameter looks at the ability of end users to meet the high capital cost for SPIS including financial support from government, development agencies and private sector.
B15: Important | D15: Important | F15: Important
B16: =H31 -> 0.1363636364 | D16: =H32 -> 0.1363636364 | F16: =H33 -> 0.1363636364
B18: 4. Availability and Cost of Alternatives | D18: 5. Technical Capacity | F18: 6. Awareness of SPIS Technologies
B19: Criterion considers the availability and cost of competing sources of power for irrigation systems. | D19: This section evaluates the in country capacity of personnel to design, implememt and maintain SPIS systems. | F19: Parameter assesses the general awareness of solar technologies such as solar lighting and heating systems, and irrigation systems such as pumps in the country.
B20: Important | D20: Critical | F20: Ignore
B21: =H34 -> 0.1363636364 | D21: =H35 -> 0.2272727273 | F21: =H36 -> 0
B23: 7. Significance of Agriculture to Local Economy | D23: 8. Land Tenure | F23: 9. Transport and Communication Infrastructure
B24: This section evaluates the importance of agriculture to the target area's economy by assessing its contribution to GDP and employment along with the proportion of arable land used for agriculture. | D24: This parameter seeks an understanding of land tenure rights which can hinder or promote adoption of SPIS. Not only do tenure rights inform investment security, but may also serve as collateral for loans. | F24: This section evaluates the availability of infrastructure and communication systems such as roads and mobile networks in enabling supply chains and easing movement of people and goods.
B25: Slightly important | D25: Ignore | F25: Ignore
B26: =H37 -> 0.09090909091 | D26: =H38 -> 0 | F26: =H39 -> 0
F30: Parameter | G30: Weight setting | H30: Percentage | I30: Score
F31: Government Interventions | G31: =B15 -> Important | H31: =I31/$I$41 -> 0.1363636364 | I31: =IF(B15="Inconsequential",2,IF(B15="Slightly important",4,IF(B15="Important",6,IF(B15="Very Important",8,IF(B15="Critical",10))))) -> 6
F32: Development Organizations Interventions | G32: =D15 -> Important | H32: =I32/$I$41 -> 0.1363636364 | I32: =IF(D15="Inconsequential",2,IF(D15="Slightly important",4,IF(D15="Important",6,IF(D15="Very Important",8,IF(D15="Critical",10))))) -> 6
F33: Financing | G33: =F15 -> Important | H33: =I33/$I$41 -> 0.1363636364 | I33: =IF(F15="Inconsequential",2,IF(F15="Slightly important",4,IF(F15="Important",6,IF(F15="Very Important",8,IF(F15="Critical",10))))) -> 6
F34: Availability and Cost of Alternatives | G34: =B20 -> Important | H34: 0.1363636364 | I34: =IF(B20="Inconsequential",2,IF(B20="Slightly important",4,IF(B20="Important",6,IF(B20="Very Important",8,IF(B20="Critical",10))))) -> 6
F35: Technical Capacity | G35: =D20 -> Critical | H35: 0.2272727273 | I35: =IF(D20="Inconsequential",2,IF(D20="Slightly important",4,IF(D20="Important",6,IF(D20="Very Important",8,IF(D20="Critical",10))))) -> 10
F36: Awareness of Solar PV and Irrigation Tecnologies | G36: =F20 -> Ignore | H36: 0 | I36: =IF(F20="Inconsequential",2,IF(F20="Slightly important",4,IF(F20="Important",6,IF(F20="Very Important",8,IF(F20="Critical",10))))) -> FALSE
F37: Significance of Agriculture to the Local Economy | G37: =B25 -> Slightly important | H37: 0.09090909091 | I37: =IF(B25="Inconsequential",2,IF(B25="Slightly important",4,IF(B25="Important",6,IF(B25="Very Important",8,IF(B25="Critical",10))))) -> 4
F38: Land Tenure | G38: =D25 -> Ignore | H38: 0 | I38: =IF(D25="Inconsequential",2,IF(D25="Slightly important",4,IF(D25="Important",6,IF(D25="Very Important",8,IF(D25="Critical",10))))) -> FALSE
F39: Transport and Communication Infrastructure | G39: =F25 -> Ignore | H39: 0 | I39: =IF(F25="Inconsequential",2,IF(F25="Slightly important",4,IF(F25="Important",6,IF(F25="Very Important",8,IF(F25="Critical",10))))) -> FALSE
F40: Additional Geophysical Parameters | G40: =B9 -> Important | H40: 0.1363636364 | I40: =IF(B9="Inconsequential",2,IF(B9="Slightly important",4,IF(B9="Important",6,IF(B9="Very Important",8,IF(B9="Critical",10))))) -> 6
F41: Total | G41: =SUM(G31:G40) -> 0 | H41: =SUM(H31:H40) -> 1 | I41: =SUM(I31:I40) -> 44

Sheet INPUT_Geophysical Parameters
C2: INPUT - Geophysical Parameters
A5: 2 | B5: Additional Geophysical Parameters | E5: Highest Possible Score | F5: Attained Score
E6: ='INPUT_Weight setting'!B10 -> 0.1363636364 | F6: =SUM(I8:I11) -> 0.1363636364
B7: Questions | C7: Sample Data Sources | E7: Answer | F7: Relevance | H7: Weight | I7: Attained Score | J7: Raw Score
A8: a) | B8: ="What is the average ground water table in "&'INPUT_Pre-check'!D6&" earmarked for SPIS?" -> What is the average ground water table in Angola earmarked for SPIS? | C8: Estimated depth of groundwater resources | E8: Up to 7m | F8: Inconsequential | H8: =E6/COUNTA(B8,B9,B10,B11) -> 0.03409090909 | I8: =(J8*H8) -> 0.03409090909 | J8: =IF(E8="Up to 7m",1,IF(E8="7m - 25m",0.8,IF(E8="25m - 50m",0.6,IF(E8="50m - 100m",0.1,IF(E8="Beyond 100m",0,IF(E8="Unknown",0))))))*IF(F8="Inconsequential",6,IF(F8="Slightly important",5,IF(F8="Important",4,IF(F8="Very important",3,IF(F8="Critical",2)))))/6 -> 1
A9: b) | B9: ="What is "&'INPUT_Pre-check'!D6&"'s minimum annual ambient temperature in terms of frost occurences?" -> What is Angola's minimum annual ambient temperature in terms of frost occurences? | C9: World Bank Global Temperature Data | E9: 1C to 30C | F9: Inconsequential | H9: =(E6/COUNTA(B8,B9,B10,B11)) -> 0.03409090909 | I9: =(J9*H9) -> 0.03409090909 | J9: =IF(E9="1C to 30C",(IF(F9="Inconsequential",6,IF(F9="Slightly important",5,IF(F9="Important",4,IF(F9="Very important",3,IF(F9="Critical",2)))))),(IF(F9="Inconsequential",6,IF(F9="Slightly important",4,IF(F9="Important",2,IF(F9="Very important",1,IF(F9="Critical",0)))))))/6 -> 1
A10: c) | B10: ="What is "&'INPUT_Pre-check'!D6&"'s general topography regarded as?" -> What is Angola's general topography regarded as? | C10: What is the slope of the area? | E10: Flat | F10: Inconsequential | H10: =(E6/COUNTA(B8,B9,B10,B11)) -> 0.03409090909 | I10: =(J10*H10) -> 0.03409090909 | J10: =IF(E10="Flat",1,IF(E10="Moderate",0.8,IF(E10="Steep",0.6)))*IF(F10="Inconsequential",6,IF(F10="Slightly important",5,IF(F10="Important",4,IF(F10="Very important",3,IF(F10="Critical",2)))))/6 -> 1
A11: d) | B11: ="What is the main type of agricultural production in "&'INPUT_Pre-check'!D6&"'s farming system?" -> What is the main type of agricultural production in Angola's farming system? | C11: Farming Systems Maps FAO | E11: Small Livestock | F11: Inconsequential | H11: =(E6/COUNTA(B8,B9,B10,B11)) -> 0.03409090909 | I11: =(J11*H11) -> 0.03409090909 | J11: =IF(E11="Seasonal Crops",0.6,IF(E11="Perennial Crops",0.8,IF(E11="Small Livestock",1,IF(E11="Large Livestock",0.9,IF(E11="Seasonal and Perennial Crops",0.7,IF(E11="Livestock and Crops",0.7))))))*IF(F11="Inconsequential",6,IF(F11="Slightly important",5,IF(F11="Important",4,IF(F11="Very important",3,IF(F11="Critical",2)))))/6 -> 1
B12: =IF((Calculations!G4)<(50 %), "Your score is below 50 % of your initial values for Geophysical Parameters! Please revise your weight setting!", "") -> 
C14: Got more recent data sources?
C15: PLEASE SHARE
C16: and help us to improve our tools.
C17: Thank you.

Sheet INPUT_Business Conditions
C2: INPUT - Business Conditions Parameters
A5: 1 | B5: Government interventions | E5: Highest Possible Score | F5: Attained Score
E6: ='INPUT_Weight setting'!B16 -> 0.1363636364 | F6: =IF(OR(AND(E8="No",F8="Critical"),AND(E11="No",F11="Critical"),AND(E12="No",F12="Critical")),0,SUM(I8:I12)) -> 0.1363636364
B7: Questions | C7: Sample Data Sources | E7: Answer | F7: Relevance | H7: Weight | I7: Attained score | J7: Raw Score
A8: a) | B8: ="Are there government, national and local policies and laws promoting solar and irrigation equipment in" &'INPUT_Pre-check'!D6&" ?" -> Are there government, national and local policies and laws promoting solar and irrigation equipment in Angola ? | C8: • Government irrigation and or solar policies, laws, bills, acts, sector development plans • Licensing of solar technicians, suppliers and or contractor companies • Government tax regulation such as duty and VAT exemptions | D8: Clean energy development policies | E8: Yes | F8: Inconsequential | H8: =E6/COUNTA(B8:B12) -> 0.04545454545 | I8: =(J8*H8) -> 0.04545454545 | J8: =(IF(E8="Yes",(IF(F8="Inconsequential",6,IF(F8="Slightly important",5,IF(F8="Important",4,IF(F8="Very important",3,IF(F8="Critical",2)))))),(IF(F8="Inconsequential",3,IF(F8="Slightly important",2,IF(F8="Important",1,IF(F8="Very important",1,IF(F8="Critical",0))))))))/6 -> 1
D9: Renewable energy support policies in developing countries: Table 4, Pg. 121
D10: Asia pacific countries policy documents
A11: b) | B11: ="Are there in"&'INPUT_Pre-check'!D6&" government programs promoting SPIS devices?" -> Are there in Angola government programs promoting SPIS devices? | C11: • Irrigation and solar programs supported by government resources | E11: Yes | F11: Inconsequential | H11: =E6/COUNTA(B8:B12) -> 0.04545454545 | I11: =(J11*H11) -> 0.04545454545 | J11: =(IF(E11="Yes",(IF(F11="Inconsequential",6,IF(F11="Slightly important",5,IF(F11="Important",4,IF(F11="Very important",3,IF(F11="Critical",2)))))),(IF(F11="Inconsequential",3,IF(F11="Slightly important",2,IF(F11="Important",1,IF(F11="Very important",1,IF(F11="Critical",0))))))))/6 -> 1
A12: c) | B12: ="Are there relevant government ministries and/bodies providing support to the sector in "&'INPUT_Pre-check'!D6&"?" -> Are there relevant government ministries and/bodies providing support to the sector in Angola? | C12: • Agriculture and energy ministries with engagement in SPIS sector • Government irrigation organizations, boards, groups • Government organizations providing SPIS related information • Government quality and standards regulation and enforcement | D12: Stand alone systems regulations and incentives | E12: Yes | F12: Inconsequential | H12: =E6/COUNTA(B8:B12) -> 0.04545454545 | I12: =(J12*H12) -> 0.04545454545 | J12: =(IF(E12="Yes",(IF(F12="Inconsequential",6,IF(F12="Slightly important",5,IF(F12="Important",4,IF(F12="Very important",3,IF(F12="Critical",2)))))),(IF(F12="Inconsequential",3,IF(F12="Slightly important",2,IF(F12="Important",1,IF(F12="Very important",1,IF(F12="Critical",0))))))))/6 -> 1
A14: 2 | B14: Development Organizations Interventions | E14: Highest Possible Score | F14: Attained Score
E15: ='INPUT_Weight setting'!D16 -> 0.1363636364 | F15: =IF(OR(AND(E17="No",F17="Critical"),AND(E18="No",F18="Critical")),0,SUM(I17:I20)) -> 0.1363636364
B16: Questions | C16: Sample Data Sources | E16: Answer | F16: Relevance | H16: Weight | I16: Attained score | J16: Raw Score
A17: a) | B17: ="Are there national programs provided in"&'INPUT_Pre-check'!D6&" by non - government institutions that promote adoption of irrigation?" -> Are there national programs provided in Angola by non - government institutions that promote adoption of irrigation? | C17: List of possible* development agencies and multilateral organizations: | E17: Yes | F17: Inconsequential | H17: =E15/(COUNTA(B17:B20)) -> 0.06818181818 | I17: =(J17*H17) -> 0.06818181818 | J17: =(IF(E17="Yes",(IF(F17="Inconsequential",6,IF(F17="Slightly important",5,IF(F17="Important",4,IF(F17="Very important",3,IF(F17="Critical",2)))))),(IF(F17="Inconsequential",3,IF(F17="Slightly important",2,IF(F17="Important",1,IF(F17="Very important",1,IF(F17="Critical",0))))))))/6 -> 1
A18: b) | B18: ="Are there national programs provided in"&'INPUT_Pre-check'!D6&" by non-government institutions specifically promoting adoption of SPIS devices?" -> Are there national programs provided in Angola by non-government institutions specifically promoting adoption of SPIS devices? | C18: List of possible* facilities and funds: | E18: Yes | F18: Inconsequential | H18: =E15/COUNTA(B17:B20) -> 0.06818181818 | I18: =(J18*H18) -> 0.06818181818 | J18: =(IF(E18="Yes",(IF(F18="Inconsequential",6,IF(F18="Slightly important",5,IF(F18="Important",4,IF(F18="Very important",3,IF(F18="Critical",2)))))),(IF(F18="Inconsequential",3,IF(F18="Slightly important",2,IF(F18="Important",1,IF(F18="Very important",1,IF(F18="Critical",0))))))))/6 -> 1
C19: List of possible* research centers and other NGOs:
C20: * List is not exhaustive
A22: 3 | B22: Financing | E22: Highest Possible Score | F22: Attained Score
E23: ='INPUT_Weight setting'!F16 -> 0.1363636364 | F23: =IF(OR(AND(E26=1,F26="Critical"),AND(E33="No",F33="Critical"), AND(E29=0,F29="Critical"), AND(E30=0,F30="Critical")),0,SUM(I25,I28,I33)) -> 0.1318181818
B24: Questions | C24: Sample National Data Sources | E24: Answer | F24: Relevance | H24: Weight | I24: Attained score | J24: Raw Score
A25: a) | B25: End users' financial ability | H25: =E23/COUNTA(B25,B28,B33) -> 0.04545454545 | I25: =I26+I27 -> 0.04090909091
A26: i) | B26: ="What proportion of the rural population in"&'INPUT_Pre-check'!D6&" is poor according to the multi-dimentional poverty index?" -> What proportion of the rural population in Angola is poor according to the multi-dimentional poverty index? | C26: OPHI Global MPI Interactive Databank: Population in multidimensional poverty (H) (%), Rural MPI Poor | E26: 0.2 | F26: Inconsequential | H26: =H25/COUNTA(B26:B27) -> 0.02272727273 | I26: =(H26*J26) -> 0.02272727273 | J26: =IF(F26="Inconsequential",1,(1-E26)) -> 1
A27: ii) | B27: ="What is the GNI per capita value of"&'INPUT_Pre-check'!D6&"?" -> What is the GNI per capita value of Angola? | C27: World Bank data: GNI per capita, Atlas method (current US$) 2016 | E27: Upper Middle Income ($3,956 to $12,235) | F27: Important | H27: =H25/COUNTA(B26:B27) -> 0.02272727273 | I27: =(H27*J27) -> 0.01818181818 | J27: =(IF(F27="Inconsequential",5,IF(E27="Low income ($1,005 or less)",1,IF(E27="Lower Middle Income ($1,006 to $3,955)",2,IF(E27="Upper Middle Income ($3,956 to $12,235)",4,IF(E27="High Income ($12.236 or more)",5,))))))/(5) -> 0.8
A28: b) | B28: Availability of financial institution support | H28: =E23/COUNTA(B25,B28,B33) -> 0.04545454545 | I28: =I29+I30+I32 -> 0.04545454545
A29: i) | B29: ="What proportion of the population above the age of 15 in "&'INPUT_Pre-check'!D6&" own a financial account?" -> What proportion of the population above the age of 15 in Angola own a financial account? | C29: i) Account (% age 15+) based on country ii) Formal borrowing (% age 15+) based on country | D29: World Bank, Financial Inclusion Data | E29: 0.3 | F29: Inconsequential | H29: =H28/COUNTA(B29:B30,B32) -> 0.01515151515 | I29: =H29*J29 -> 0.01515151515 | J29: =IF(F29="Inconsequential",1,E29) -> 1
A30: ii) | B30: ="What is the proportion of the population above the age of 15 in"&'INPUT_Pre-check'!D6&" which borrowed from a financial institution in the given year*?" -> What is the proportion of the population above the age of 15 in Angola which borrowed from a financial institution in the given year*? | E30: 0.2 | F30: Inconsequential | H30: =H28/COUNTA(B29:B30,B32) -> 0.01515151515 | I30: =H30*J30 -> 0.01515151515 | J30: =IF(F30="Inconsequential",1,E30) -> 1
B31: * given year is the most recent year Data is available
A32: iii) | B32: ="What is"&'INPUT_Pre-check'!D6&"'s ease of getting credit ranking?" -> What is Angola's ease of getting credit ranking? | C32: World Bank Ease of doing Business 2017 | E32: 77 | F32: Inconsequential | H32: =H28/COUNTA(B29:B30,B32) -> 0.01515151515 | I32: =(H32*J32) -> 0.01515151515 | J32: =(IF(F32="Inconsequential",186,(186-E32)))/186 -> 1
A33: c) | B33: ="Are there any government economic incentives affecting the adoption of SPIS devices in"&'INPUT_Pre-check'!D6&"?" -> Are there any government economic incentives affecting the adoption of SPIS devices in Angola? | C33: • Government tax exemptions, subsidies, rebates, credits etc. given to customers of SPIS products, suppliers or other intermediaries such as financiers | E33: Yes | F33: Inconsequential | H33: =E23/COUNTA(B25,B28,B33) -> 0.04545454545 | I33: =H33*J33 -> 0.04545454545 | J33: =(IF(E33="Yes",(IF(F33="Inconsequential",6,IF(F33="Slightly important",5,IF(F33="Important",4,IF(F33="Very important",3,IF(F33="Critical",2)))))),(IF(F33="Inconsequential",3,IF(F33="Slightly important",2,IF(F33="Important",1,IF(F33="Very important",1,IF(F33="Critical",0))))))))/6 -> 1
A35: 4 | B35: Availability and cost of alternative sources of power for pumping | E35: Highest Possible Score | F35: Attained Score
E36: ='INPUT_Weight setting'!B21 -> 0.1363636364 | F36: =IF(OR(AND(E39="Yes",F39="Critical"),AND(E40="Yes",F40="Critical"),AND(E47="Yes",F47="Critical"),AND(E48="Yes",F48="Critical")),0,SUM(I38,I46,I49)) -> 0.09090909091
B37: Questions | C37: Sample Local Data Sources | D37: Sample National Data Sources | E37: Answer | F37: Relevance | H37: Weight | I37: Attained score | J37: Raw Score
A38: a) | B38: Availability of competitive alternative power sources | H38: =E36/COUNTA(B38,B46,B49) -> 0.04545454545 | I38: =I39+I40+I45 -> 0.04545454545
A39: i) | B39: ="Does"&'INPUT_Pre-check'!D6&" have fossil fuel resources that it exploits?" -> Does Angola have fossil fuel resources that it exploits? | C39: National fossil fuel reserves | E39: No | F39: Inconsequential | H39: =H38/(COUNTA(B39:B45)-1) -> 0.02272727273 | I39: =H39*J39 -> 0.02272727273 | J39: =IF(E39="No",IF(F39="Inconsequential",1,IF(F39="Important",0.5)),0) -> 1
A40: ii) | B40: ="Is the area of interest in close proximity (within 5km of a grid access point) to the grid or is the rural electrification rate of "&'INPUT_Pre-check'!D6&" greater than 80%?" -> Is the area of interest in close proximity (within 5km of a grid access point) to the grid or is the rural electrification rate of Angola greater than 80%? | C40: African grid | D40: Access to electricity, rural electrification rate | E40: No | F40: Inconsequential | H40: =H38/((COUNTA(B39:B45)-1)*2) -> 0.01136363636 | I40: =H40*J40 -> 0.01136363636 | J40: =IF(E40="No",IF(F40="Inconsequential",1,IF(F40="Important",0.5)),0) -> 1
C41: European grid
C42: USA grid | D42: Tracking SDG 7
C43: Australian grid | D43: Grid maps
C44: For better accuracy use country specific grid data
A45: iii) | B45: ="What is the frequency of power outages in the area of interest or in"&'INPUT_Pre-check'!D6&"?" -> What is the frequency of power outages in the area of interest or in Angola? | C45: • Area of interest local electricity supply reliability | D45: Power outages frequency | E45: Low | F45: Inconsequential | H45: =H38/((COUNTA(B39:B45)-1)*2) -> 0.01136363636 | I45: =H45*J45 -> 0.01136363636 | J45: =(IF(F45="Inconsequential",5,IF(E45="Low",1,IF(E45="Regular",2,IF(E45="High",4,IF(E45="Very high",5,))))))/5 -> 1
A46: b) | B46: Subsidies | H46: =E36/COUNTA(B38,B46,B49) -> 0.04545454545 | I46: =I47+I48 -> 0.04545454545
A47: i) | B47: ="Is there a grid subsidy in "&'INPUT_Pre-check'!D6&" or in the area of interest including for the cost of electricity and or connection fee to the grid?" -> Is there a grid subsidy in Angola or in the area of interest including for the cost of electricity and or connection fee to the grid? | C47: • Area of interest local electricity supply regulation | D47: Presence of national electricity subsidy | E47: No | F47: Inconsequential | H47: =H38/COUNTA(B47:B48) -> 0.02272727273 | I47: =H47*J47 -> 0.02272727273 | J47: =IF(E47="No",IF(F47="Inconsequential",1,IF(F47="Important",0.5)),0) -> 1
A48: ii) | B48: ="Is there a fuel subsidy in "&'INPUT_Pre-check'!D6&" or in the area of interest?" -> Is there a fuel subsidy in Angola or in the area of interest? | C48: • Area of interest local fuel supply regulation | D48: Presence of national fuel subsidy e.g. of diesel and kerosene | E48: No | F48: Inconsequential | H48: =H38/COUNTA(B47:B48) -> 0.02272727273 | I48: =H48*J48 -> 0.02272727273 | J48: =IF(E48="No",IF(F48="Inconsequential",1,IF(F48="Important",0.5)),0) -> 1
A49: c) | B49: Cost comparison | H49: =E36/COUNTA(B38,B46,B49) -> 0.04545454545 | I49: =I50+I51 -> 0
A50: i) | B50: ="What is the average electricity retail tariff in USD per kWh for all end users in"&'INPUT_Pre-check'!D6&" or in the area of interest?" -> What is the average electricity retail tariff in USD per kWh for all end users in Angola or in the area of interest? | C50: • Area of interest local electricity supply cost in USD per kWh | D50: Retail electricity tariff (average of all end-users) in USD/kWh | F50: Reference for least penalty will be 1USD/kWh, with the most expensive power, rounded up to the next whole number (0.61) | H50: =H49/COUNTA(B50:B51) -> 0.02272727273 | I50: =H50*J50 -> 0 | J50: =E50 -> 0
A51: ii) | B51: ="What is the average retail price for diesel in USD per litre in"&'INPUT_Pre-check'!D6&" or in the area of interest?" -> What is the average retail price for diesel in USD per litre in Angola or in the area of interest? | C51: • Area of interest local average diesel cost in USD/Liter | D51: Diesel prices in USD/Liter | F51: Reference for least penalty will be 3 USD/L the price of Iceland, with the most expensive diesel, rounded up to the next whole number (2.03) | H51: =H49/COUNTA(B50:B51) -> 0.02272727273 | I51: =H51*J51 -> 0 | J51: =E51/3 -> 0
A53: 5 | B53: Technical capacity for SPIS | E53: Highest Possible Score | F53: Attained Score
E54: ='INPUT_Weight setting'!D21 -> 0.2272727273 | F54: =IF(OR(AND(E56="No",F56="Critical"),AND(E57="No",F57="Critical"),AND(E58="No",F58="Critical")),0,SUM(I56:I58)) -> 0.1893939394
B55: Questions | C55: Sample National Data Sources | E55: Answer | F55: Relevance | H55: Weight | I55: Attained score | J55: Raw Score
A56: a) | B56: ="Are there training sessions on solar technologies and application (Design, O&M and repairs) available in"&'INPUT_Pre-check'!D6&"?" -> Are there training sessions on solar technologies and application (Design, O&M and repairs) available in Angola? | C56: ="• Solar systems and technologies courses in educational institutions in" & 'INPUT_Pre-check'!D6& "." -> • Solar systems and technologies courses in educational institutions in Angola. | E56: No | F56: Inconsequential | H56: =E54/COUNTA(B56:B58) -> 0.07575757576 | I56: =(J56*H56) -> 0.03787878788 | J56: =(IF(E56="Yes",(IF(F56="Inconsequential",6,IF(F56="Slightly important",5,IF(F56="Important",4,IF(F56="Very important",3,IF(F56="Critical",2)))))),(IF(F56="Inconsequential",3,IF(F56="Slightly important",2,IF(F56="Important",1,IF(F56="Very important",1,IF(F56="Critical",0))))))))/6 -> 0.5
A57: b) | B57: ="Are solar technicians in"&'INPUT_Pre-check'!D6&" licensed to carry out their work by the government?" -> Are solar technicians in Angola licensed to carry out their work by the government? | C57: • Government regulation on licensing of solar technicians | E57: Yes | F57: Inconsequential | H57: =E54/COUNTA(B56:B58) -> 0.07575757576 | I57: =(J57*H57) -> 0.07575757576 | J57: =(IF(E57="Yes",(IF(F57="Inconsequential",6,IF(F57="Slightly important",5,IF(F57="Important",4,IF(F57="Very important",3,IF(F57="Critical",2)))))),(IF(F57="Inconsequential",3,IF(F57="Slightly important",2,IF(F57="Important",1,IF(F57="Very important",1,IF(F57="Critical",0))))))))/6 -> 1
A58: c) | B58: Is solar technology part of the curriculum in agricultural courses or programs in agricultural training institutions? | C58: ="• Solar systems and technologies courses in educational institutions in" & 'INPUT_Pre-check'!D6& "." -> • Solar systems and technologies courses in educational institutions in Angola. | E58: Yes | F58: Inconsequential | H58: =E54/COUNTA(B56:B58) -> 0.07575757576 | I58: =(J58*H58) -> 0.07575757576 | J58: =(IF(E58="Yes",(IF(F58="Inconsequential",6,IF(F58="Slightly important",5,IF(F58="Important",4,IF(F58="Very important",3,IF(F58="Critical",2)))))),(IF(F58="Inconsequential",3,IF(F58="Slightly important",2,IF(F58="Important",1,IF(F58="Very important",1,IF(F58="Critical",0))))))))/6 -> 1
A60: 6 | B60: Awareness of solar PV and irrigation technologies | E60: Highest Possible Score | F60: Attained Score
E61: ='INPUT_Weight setting'!F21 -> 0 | F61: =IF(OR(AND(E64="No",F64="Critical"),AND(E68="No",F68="Critical"),AND(E65="No",F65="Critical"),AND(E69=0,F69="Critical")),0,SUM(I63,I67,)) -> 0
B62: Questions | C62: Sample National Data Sources | E62: Answer | F62: Relevance | H62: Weight | I62: Attained score | J62: Raw Score
A63: a) | B63: Solar | H63: =E61/COUNTA(B63,B67) -> 0 | I63: =I64+I65+I66 -> 0
A64: i) | B64: ="Is there a cumulative increase in the installed capacity of solar energy between the years 2012 - 2016 in " &'INPUT_Pre-check'!D6&"?" -> Is there a cumulative increase in the installed capacity of solar energy between the years 2012 - 2016 in Angola? | C64: IRENA dashboard: Trends in Renewable Energy | E64: Yes | F64: Inconsequential | H64: =H63/COUNTA(B64:B66) -> 0 | I64: =(J64*H64) -> 0 | J64: =(IF(E64="Yes",(IF(F64="Inconsequential",6,IF(F64="Slightly important",5,IF(F64="Important",4,IF(F64="Very important",3,IF(F64="Critical",2)))))),(IF(F64="Inconsequential",3,IF(F64="Slightly important",2,IF(F64="Important",1,IF(F64="Very important",1,IF(F64="Critical",0))))))))/6 -> 1
A65: ii) | B65: ="Is there a general increase in the annual net additional installed solar energy between the years 2012 - 2016 in " &'INPUT_Pre-check'!D6&"?" -> Is there a general increase in the annual net additional installed solar energy between the years 2012 - 2016 in Angola? | E65: Yes | F65: Inconsequential | H65: =H63/COUNTA(B64:B66) -> 0 | I65: =(J65*H65) -> 0 | J65: =(IF(E65="Yes",(IF(F65="Inconsequential",6,IF(F65="Slightly important",5,IF(F65="Important",4,IF(F65="Very important",3,IF(F65="Critical",2)))))),(IF(F65="Inconsequential",3,IF(F65="Slightly important",2,IF(F65="Important",1,IF(F65="Very important",1,IF(F65="Critical",0))))))))/6 -> 1
A66: iii) | B66: What is the solar energy proportion of the total installed energy capacity? | E66: 0.05 | F66: Important | H66: =H63/COUNTA(B64:B66) -> 0 | I66: =(J66*H66) -> 0 | J66: =IF(F66="Inconsequential",0.5,E66) -> 0.05
A67: b) | B67: Distribution networks for solar and irrigation systems | H67: =E61/COUNTA(B63,B67) -> 0 | I67: =I68+I69 -> 0
A68: i) | B68: ="Is there a presence of suppliers and or distributors of water pump products from global pump manufactures in the market in"&'INPUT_Pre-check'!D6&"? " -> Is there a presence of suppliers and or distributors of water pump products from global pump manufactures in the market in Angola? | C68: • List of major water pump products and suppliers | D68: Ebara | E68: Yes | F68: Inconsequential | H68: =H67/COUNTA(B68:B69) -> 0 | I68: =(J68*H68) -> 0 | J68: =(IF(E68="Yes",(IF(F68="Inconsequential",6,IF(F68="Slightly important",5,IF(F68="Important",4,IF(F68="Very important",3,IF(F68="Critical",2)))))),(IF(F68="Inconsequential",3,IF(F68="Slightly important",2,IF(F68="Important",1,IF(F68="Very important",1,IF(F68="Critical",0))))))))/6 -> 1
A69: ii) | B69: ="Is there a presence of suppliers and/or distributors of solar PV systems from global manufacturers in the market in"&'INPUT_Pre-check'!D6&" ? " -> Is there a presence of suppliers and/or distributors of solar PV systems from global manufacturers in the market in Angola ? | C69: • List of major solar PV products and suppliers | D69: Ebara | E69: Yes | F69: Inconsequential | H69: =H67/COUNTA(B68:B69) -> 0 | I69: =(J69*H69) -> 0 | J69: =(IF(E69="Yes",(IF(F69="Inconsequential",6,IF(F69="Slightly important",5,IF(F69="Important",4,IF(F69="Very important",3,IF(F69="Critical",2)))))),(IF(F69="Inconsequential",3,IF(F69="Slightly important",2,IF(F69="Important",1,IF(F69="Very important",1,IF(F69="Critical",0))))))))/6 -> 1
A71: 7 | B71: Significance of agriculture in the local economy | E71: Highest Possible Score | F71: Attained Score
E72: ='INPUT_Weight setting'!B26 -> 0.09090909091 | F72: =IF(OR(AND(E74=0,F74="Critical"),AND(E76=0,F76="Critical"),AND(E77=0,F77="Critical")),0,SUM(I74:I78)) -> 0.04545454545
B73: Questions | C73: Sample National data Sources | E73: Answer | F73: Relevance | H73: Weight | I73: Attained score | J73: Raw Score
A74: a) | B74: ="What proportion of the employed population in "&'INPUT_Pre-check'!D6& " are employed in the agricultural sector?" -> What proportion of the employed population in Angola are employed in the agricultural sector? | C74: World Bank; Indicators per country in 2017 (most recent year); Employment in agriculture (% of total employment) | F74: Inconsequential | H74: =E72/COUNTA(B74:B78) -> 0.01818181818 | I74: =(J74*H74) -> 0.009090909091 | J74: =IF(F74="Inconsequential",0.5,E74) -> 0.5
A75: b) | B75: ="What proportion of the population is rural?" -> What proportion of the population is rural? | C75: World Bank; Rural population (% of total population) in 2016; | F75: Inconsequential | H75: =E72/COUNTA(B74:B78) -> 0.01818181818 | I75: =(J75*H75) -> 0.009090909091 | J75: =IF(F75="Inconsequential",0.5,E75) -> 0.5
A76: c) | B76: ="What proportion of "&'INPUT_Pre-check'!D6& "'s GDP is contributed by its agricultural output?" -> What proportion of Angola's GDP is contributed by its agricultural output? | C76: World Bank; Indicators per country in 2016 (most recent year); Agriculture, value added (% of GDP) | F76: Inconsequential | H76: =E72/COUNTA(B74:B78) -> 0.01818181818 | I76: =(J76*H76) -> 0.009090909091 | J76: =IF(F76="Inconsequential",0.5,E76) -> 0.5
A77: e) | B77: ="What proportion of "&'INPUT_Pre-check'!D6&"'s total land is agricultural land?" -> What proportion of Angola's total land is agricultural land? | C77: World Bank; Indicators per country in 2015 (most recent year); Agricultural land (% of land area) | F77: Inconsequential | H77: =E72/COUNTA(B74:B78) -> 0.01818181818 | I77: =(J77*H77) -> 0.009090909091 | J77: =IF(F77="Inconsequential",0.5,E77) -> 0.5
A78: d) | B78: ="What percentage of cultivated land area in"&'INPUT_Pre-check'!D6&" is already under irrigation?" -> What percentage of cultivated land area in Angola is already under irrigation? | C78: FAO, Aquastat map, Part of cultivated area under irrigation (%) | F78: Inconsequential | H78: =E72/COUNTA(B74:B78) -> 0.01818181818 | I78: =(J78*H78) -> 0.009090909091 | J78: =IF(F78="Inconsequential",0.5,E78)+IF(E78>E77,"0,25","0") -> 0.5
A80: 8 | B80: Land use rights, ownership and tenure | E80: Highest Possible Score | F80: Attained Score
E81: ='INPUT_Weight setting'!D26 -> 0 | F81: =SUM(I83:I87) -> 0
B82: Questions | C82: Sample National Data Sources | E82: Answer | F82: Relevance | H82: Weight | I82: Attained score | J82: Raw Score
A83: a) | B83: ="What proportion of" &'INPUT_Pre-check'!D6&"'s total land area is indigenous and community lands?" -> What proportion of Angola's total land area is indigenous and community lands? | C83: Landmark: Global platform of indigenous and community lands | E83: 0.6 | F83: Inconsequential | H83: =$E$81/COUNTA(B83,B85,B87) -> 0 | I83: =(J83*H83) -> 0 | J83: =IF(F83="Inconsequential",0.5,(1-E83)) -> 0.5
B84: Impact of population density on SPIS | C84: Data Sources for Population Density | D84: Population Density | H84: =$E$81/COUNTA(B83,B85,B87) -> 0 | I84: =(J84*H84) -> 0 | J84: =IF(E85="Positive",(IF(F85="Inconsequential",6,IF(F85="Slightly important",5,IF(F85="Important",4,IF(F85="Very important",3,IF(F85="Critical",2)))))),(IF(F85="Inconsequential",3,IF(F85="Slightly important",2,IF(F85="Important",1,IF(F85="Very important",1,IF(F85="Critical",0)))))))/6 -> 0.6666666667
A85: b) | B85: Does the population density positively or negatively affect the market for SPIS? | C85: World Population Density Data Index Mundi | D85: <1 | E85: Positive | F85: Important
A87: c) | B87: Does the population density have a positive or negative effect on land availability for agriculture? | E87: Positive | F87: Inconsequential | H87: =$E$81/COUNTA(B83,B85,B87) -> 0 | I87: =(J87*H87) -> 0 | J87: =IF(E87="Positive",(IF(F87="Inconsequential",6,IF(F87="Slightly important",5,IF(F87="Important",4,IF(F87="Very important",3,IF(F87="Critical",2)))))),(IF(F87="Inconsequential",3,IF(F87="Slightly important",2,IF(F87="Important",1,IF(F87="Very important",1,IF(F87="Critical",0)))))))/6 -> 1
A90: 9 | B90: Transportation and communication infrastructure | E90: Highest Possible Score | F90: Attained Score
E91: ='INPUT_Weight setting'!F26 -> 0 | F91: =I93+I99 -> 0
B92: Questions | C92: Sample National Data Sources | E92: Answer | F92: Relevance | H92: Weight | I92: Attained score | J92: Raw Score
A93: a) | B93: Transport | H93: =E91/COUNTA(B93,B99) -> 0 | I93: =I94+I95+I97+I98+I96 -> 0
A94: i) | B94: ="What is the quality of air transport infrastructure score of"&'INPUT_Pre-check'!D6&"?" -> What is the quality of air transport infrastructure score of Angola? | C94: Global mobility data, Country snapshot | F94: Inconsequential | H94: =H93/COUNTA(B94:B98) -> 0 | I94: =(J94*H94) -> 0 | J94: =(IF(F94="Inconsequential",3.5,E94))/7 -> 0.5
A95: ii) | B95: ="What is the quality of port infrastructure score of"&'INPUT_Pre-check'!D6&"?" -> What is the quality of port infrastructure score of Angola? | F95: Inconsequential | H95: =H93/COUNTA(B94:B98) -> 0 | I95: =(J95*H95) -> 0 | J95: =(IF(F95="Inconsequential",3.5,E95))/7 -> 0.5
A96: iii) | B96: ="What is the quality of road infrastructure score of"&'INPUT_Pre-check'!D6&"?" -> What is the quality of road infrastructure score of Angola? | F96: Inconsequential | H96: =H93/COUNTA(B94:B98) -> 0 | I96: =(J96*H96) -> 0 | J96: =(IF(F96="Inconsequential",3.5,E96))/7 -> 0.5
A97: iv) | B97: ="What is the quality of railroad infrastructure score of"&'INPUT_Pre-check'!D6&"?" -> What is the quality of railroad infrastructure score of Angola? | F97: Inconsequential | H97: =H93/COUNTA(B94:B98) -> 0 | I97: =(J97*H97) -> 0 | J97: =(IF(F97="Inconsequential",3.5,E97))/7 -> 0.5
A98: v) | B98: ="What is the overall logistics performance index score of"&'INPUT_Pre-check'!D6&" in 2016?" -> What is the overall logistics performance index score of Angola in 2016? | C98: Logistics performance index: Quality of trade and transport-related infrastructure (1=low to 5=high) | F98: Inconsequential | H98: =H93/COUNTA(B94:B98) -> 0 | I98: =(J98*H98) -> 0 | J98: =(IF(F98="Inconsequential",2.5,E98))/5 -> 0.5
A99: b) | B99: Communication | H99: =E91/COUNTA(B93,B99) -> 0 | I99: =I100+I101+I102 -> 0
A100: i) | B100: ="What is the mobile-cellular telephone subscriptions per 100 inhabitants value in"&'INPUT_Pre-check'!D6&"?" -> What is the mobile-cellular telephone subscriptions per 100 inhabitants value in Angola? | C100: International Telecommunications Union, global ICT Development Index (IDI) statistics | F100: Inconsequential | H100: =H99/COUNTA(B100:B102) -> 0 | I100: =(J100*H100) -> 0 | J100: =(IF(F100="Inconsequential",50,E100))/100 -> 0.5
A101: i) | B101: ="What is the active mobile-broadband subscriptions per 100 inhabitants value in"&'INPUT_Pre-check'!D6&"?" -> What is the active mobile-broadband subscriptions per 100 inhabitants value in Angola? | F101: Inconsequential | H101: =H99/COUNTA(B100:B102) -> 0 | I101: =(J101*H101) -> 0 | J101: =(IF(F101="Inconsequential",50,E101))/100 -> 0.5
A102: iii) | B102: ="What is the overall ICT Development Index value - IDI - of"&'INPUT_Pre-check'!D6&" in 2017?" -> What is the overall ICT Development Index value - IDI - of Angola in 2017? | F102: Inconsequential | H102: =H99/COUNTA(B100:B102) -> 0 | I102: =(J102*H102) -> 0 | J102: =(IF(F102="Inconsequential",5,E102))/10 -> 0.5
C105: Got more recent data sources?
C106: PLEASE SHARE
C107: and help us to improve our tools.
C108: Thank you.

Sheet OUTPUT_Result
D2: OUTPUT - Market Assessment Results
B4: Country: | C4: ='INPUT_Pre-check'!D6 -> Angola | G4: Assessment date: | I4: ='INPUT_Pre-check'!D8 -> 00:00:00
B5: Specific area of interest: | C5: ='INPUT_Pre-check'!D7 -> 0 | G5: Assessor name: | I5: ='INPUT_Pre-check'!D9 -> 0
B7: A. Market Potential for SPIS: Score and Relevances
B9: Total Score (%) | H9: Overview of Relevance Ratings
B23: B. Market Potential for SPIS: Overall Score
L27: Major Market Barrier
L28: Minor Market Barrier
L29: Minor Market Strength
L30: Major Market Strength
B52: C. Market Potential for SPIS: Comparative Score to Weight Setting

Sheet Calculations (hidden)
B3: Enabling SPIS Business Factors | C3: Initial weight setting | D3: Actually attained score | E3: Difference | G3: Attained Score
A4: 1 | B4: Geophysical Parameters | C4: =' INPUT_Geophysical Parameters'!E6 -> 0.1363636364 | D4: =' INPUT_Geophysical Parameters'!F6 -> 0.1363636364 | E4: =C4-D4 -> 0 | F4: =100%-C4 -> 0.8636363636 | G4: =D4/C4 -> 1
A5: 2 | B5: Government interventions | C5: ='INPUT_Business Conditions'!E6 -> 0.1363636364 | D5: ='INPUT_Business Conditions'!F6 -> 0.1363636364 | E5: =C5-D5 -> 0 | F5: =100%-C5 -> 0.8636363636 | G5: =D5/C5 -> 1
A6: 3 | B6: Development Organizations Interventions | C6: ='INPUT_Business Conditions'!E15 -> 0.1363636364 | D6: ='INPUT_Business Conditions'!F15 -> 0.1363636364 | E6: =C6-D6 -> 0 | F6: =100%-C6 -> 0.8636363636 | G6: 1
A7: 4 | B7: Financing | C7: ='INPUT_Business Conditions'!E23 -> 0.1363636364 | D7: ='INPUT_Business Conditions'!F23 -> 0.1318181818 | E7: 0.004545454545 | F7: 0.8636363636 | G7: 0.9666666667
A8: 5 | B8: Availability and cost of alternative sources of power for pumping | C8: ='INPUT_Business Conditions'!E36 -> 0.1363636364 | D8: ='INPUT_Business Conditions'!F36 -> 0.09090909091 | E8: 0.04545454545 | F8: 0.8636363636 | G8: 0.6666666667
A9: 6 | B9: Technical capacity for SPIS | C9: ='INPUT_Business Conditions'!E54 -> 0.2272727273 | D9: ='INPUT_Business Conditions'!F54 -> 0.1893939394 | E9: 0.03787878788 | F9: 0.7727272727 | G9: 0.8333333333
A10: 7 | B10: Awareness of solar PV and irrigation technologies | C10: ='INPUT_Business Conditions'!E61 -> 0 | D10: ='INPUT_Business Conditions'!F61 -> 0 | E10: 0 | F10: 1
A11: 8 | B11: Significance of agriculture in the local economy | C11: ='INPUT_Business Conditions'!E72 -> 0.09090909091 | D11: ='INPUT_Business Conditions'!F72 -> 0.04545454545 | E11: 0.04545454545 | F11: 0.9090909091 | G11: 0.5
A12: 9 | B12: Land use rights, ownership and tenure | C12: ='INPUT_Business Conditions'!E81 -> 0 | D12: ='INPUT_Business Conditions'!F81 -> 0 | E12: 0 | F12: 1
A13: 10 | B13: Transportation and communication infrastructure | C13: ='INPUT_Business Conditions'!E91 -> 0 | D13: ='INPUT_Business Conditions'!F91 -> 0 | E13: 0 | F13: 1
C14: =SUM(C4:C13) -> 1 | D14: =SUM(D4:D13) -> 0.8666666667 | E14: =C14-D14 -> 0.1333333333
B21: GEOPHYSICAL Parameters
C22: Doughnut | D22: Pie
B23: Red Zone | C23: 30 | D23: =IF('INPUT_Pre-check'!T14=0,10, IF('INPUT_Pre-check'!T14=1,7, IF('INPUT_Pre-check'!T14=2,14, IF('INPUT_Pre-check'!T14=3,21, IF('INPUT_Pre-check'!T14=4,30, IF('INPUT_Pre-check'!T14=5,45, IF('INPUT_Pre-check'!T14=6,60, IF('INPUT_Pre-check'!T14=7,75, IF('INPUT_Pre-check'!T14=8,100,115))))))))) -> 75 | E23: Value
B24: Orange Zone | C24: 30 | D24: 1 | E24: Ticker
B25: Yellow Zone | C25: 30 | D25: =240-D23-D24 -> 164 | E25: Rest Value
B26: Green Zone | C26: 30
B27: Hidden Zone | C27: 120
B30: Relevance | C30: Business | D30: Geophysical | E30: Total
B31: Inconsequential | C31: =(COUNTIF('INPUT_Business Conditions'!$F$8:$F$102,Calculations!B31))/44 -> 0.8409090909 | D31: =(COUNTIF(' INPUT_Geophysical Parameters'!$F$8:$F$11,Calculations!B31))/44 -> 0.09090909091 | E31: =SUM(C31:D31) -> 0.9318181818
B32: Slightly important | C32: =(COUNTIF('INPUT_Business Conditions'!$F$8:$F$102,Calculations!B32))/44 -> 0 | D32: =(COUNTIF(' INPUT_Geophysical Parameters'!$F$8:$F$11,Calculations!B32))/44 -> 0 | E32: =SUM(C32:D32) -> 0
B33: Important | C33: =(COUNTIF('INPUT_Business Conditions'!$F$8:$F$102,Calculations!B33))/44 -> 0.06818181818 | D33: =(COUNTIF(' INPUT_Geophysical Parameters'!$F$8:$F$11,Calculations!B33))/44 -> 0 | E33: =SUM(C33:D33) -> 0.06818181818
B34: Very important | C34: =(COUNTIF('INPUT_Business Conditions'!$F$8:$F$102,Calculations!B34))/44 -> 0 | D34: =(COUNTIF(' INPUT_Geophysical Parameters'!$F$8:$F$11,Calculations!B34))/44 -> 0 | E34: =SUM(C34:D34) -> 0
B35: Critical | C35: =(COUNTIF('INPUT_Business Conditions'!$F$8:$F$102,Calculations!B35))/44 -> 0 | D35: =(COUNTIF(' INPUT_Geophysical Parameters'!$F$8:$F$11,Calculations!B35))/44 -> 0 | E35: =SUM(C35:D35) -> 0
C36: =SUM(C31:C35) -> 0.9090909091 | D36: =SUM(D31:D35) -> 0.09090909091 | E36: =SUM(E31:E35) -> 1

Sheet Lists (hidden)
A1: Countries | B1: List of possible* development agencies and multilateral organizations: | C1: List of possible* facilities and funds: | D1: List of possible* research centers and other NGOs: | E1: Rural MPI | F1: GNI per Capita | G1: pump manufacturers
A2: Afghanistan | B2: African Development Bank | C2: CTF (Clean Technology Fund) | D2: AAA (Adaptation of African Agriculture) | E2: 0.10 - 1.86 | F2: Low income ($1,005 or less) | G2: AllightSykes
A3: Albania | B3: CGIAR (Climate Change, Agriculture and Food Security) | C3: EcoMicro | D3: AGRA | E3: 1.87 - 8.80 | F3: Lower Middle Income ($1,006 to $3,955) | G3: Ebara
A4: Algeria | B4: DFID ( Department for International Development - United Kingdom) | C4: GEF (Global Environment Facility) | D4: Energy 4Impact | E4: 8.81 - 26.06 | F4: Upper Middle Income ($3,956 to $12,235) | G4: Flowserve
A5: American Samoa | B5: FAO (Food and Agriculture Organization) | C5: GPOBA (Global Partnershi on Output Based Aid) | D5: IFPRI (International Food Policy Research Institute) | E5: 26.07 - 48.54 | F5: High Income ($12.236 or more) | G5: Grundfos
A6: Andorra | B6: GACSA (Global Alliance For Climate-Smart Agriculture) | C6: ICBA | D6: Lutheran World Relief | E6: 48.55 - 68.29 | G6: Kirloskar Brothers Lt
A7: Angola | B7: GIZ (Deutsche Gesellschaft für Internationale Zusammenarbeit GmbH) | C7: ICBA (International Center for Biosaline Agriculture) | D7: The Practica Foundation | E7: 68.30 - 84.33 | G7: KSB
A8: Anguilla | B8: IFAD (International Fund for Agriculture Development) | E8: 84.34 - 96.90 | G8: Lorentz
A9: Antigua & Barbuda | B9: JICA (Japan International Cooperation Agency) | E9: No data | G9: Ruhrpumpen Group
A10: Argentina | B10: Nordic Development Fund | G10: Suzler Ltd
A11: Armenia | B11: OECD (Organisation for Economic Co-operation and Development) | G11: Weir Group
A12: Aruba | B12: OFID (OPEC Fund for International Development) | G12: Wilo SE
A13: Australia | B13: SIDA (Swedish International Development Cooperation Agency) | G13: Xylem
A14: Austria | B14: USAID
A15: Azerbaijan | B15: World Bank Group
A16: Bahamas, The | B16: World Food Programme
A17: Bahrain
A18: Bangladesh
A19: Barbados
A20: Belarus
A21: Belgium
A22: Belize
A23: Benin
A24: Bermuda
A25: Bhutan
A26: Bolivia
A27: Bosnia & Herzegovina
A28: Botswana
A29: Brazil
A30: British Virgin Is.
A31: Brunei
A32: Bulgaria
A33: Burkina Faso
A34: Burma
A35: Burundi
A36: Cambodia
A37: Cameroon
A38: Canada
A39: Cape Verde
A40: Cayman Islands
A41: Central African Rep.
A42: Chad
A43: Chile
A44: China
A45: Colombia
A46: Comoros
A47: Congo, Dem. Rep.
A48: Congo, Repub. of the
A49: Cook Islands
A50: Costa Rica
A51: Cote d'Ivoire
A52: Croatia
A53: Cuba
A54: Cyprus
A55: Czech Republic
A56: Denmark
A57: Djibouti
A58: Dominica
A59: Dominican Republic
A60: East Timor
A61: Ecuador
A62: Egypt
A63: El Salvador
A64: Equatorial Guinea
A65: Eritrea
A66: Estonia
A67: Ethiopia
A68: Faroe Islands
A69: Fiji
A70: Finland
A71: France
A72: French Guiana
A73: French Polynesia
A74: Gabon
A75: Gambia, The
A76: Gaza Strip
A77: Georgia
A78: Germany
A79: Ghana
A80: Gibraltar
A81: Greece
A82: Greenland
A83: Grenada
A84: Guadeloupe
A85: Guam
A86: Guatemala
A87: Guernsey
A88: Guinea
A89: Guinea-Bissau
A90: Guyana
A91: Haiti
A92: Honduras
A93: Hong Kong
A94: Hungary
A95: Iceland
A96: India
A97: Indonesia
A98: Iran
A99: Iraq
A100: Ireland
A101: Isle of Man
A102: Israel
A103: Italy
A104: Jamaica
A105: Japan
A106: Jersey
A107: Jordan
A108: Kazakhstan
A109: Kenya
A110: Kiribati
A111: Korea, North
A112: Korea, South
A113: Kuwait
A114: Kyrgyzstan
A115: Laos
A116: Latvia
A117: Lebanon
A118: Lesotho
A119: Liberia
A120: Libya
A121: Liechtenstein
A122: Lithuania
A123: Luxembourg
A124: Macau
A125: Macedonia
A126: Madagascar
A127: Malawi
A128: Malaysia
A129: Maldives
A130: Mali
A131: Malta
A132: Marshall Islands
A133: Martinique
A134: Mauritania
A135: Mauritius
A136: Mayotte
A137: Mexico
A138: Micronesia, Fed. St.
A139: Moldova
A140: Monaco
A141: Mongolia
A142: Montserrat
A143: Morocco
A144: Mozambique
A145: Namibia
A146: Nauru
A147: Nepal
A148: Netherlands
A149: Netherlands Antilles
A150: New Caledonia
A151: New Zealand
A152: Nicaragua
A153: Niger
A154: Nigeria
A155: N. Mariana Islands
A156: Norway
A157: Oman
A158: Pakistan
A159: Palau
A160: Panama
A161: Papua New Guinea
A162: Paraguay
A163: Peru
A164: Philippines
A165: Poland
A166: Portugal
A167: Puerto Rico
A168: Qatar
A169: Reunion
A170: Romania
A171: Russia
A172: Rwanda
A173: Saint Helena
A174: Saint Kitts & Nevis
A175: Saint Lucia
A176: St Pierre & Miquelon
A177: Saint Vincent and the Grenadines
A178: Samoa
A179: San Marino
A180: Sao Tome & Principe
A181: Saudi Arabia
A182: Senegal
A183: Serbia
A184: Seychelles
A185: Sierra Leone
A186: Singapore
A187: Slovakia
A188: Slovenia
A189: Solomon Islands
A190: Somalia
A191: South Africa
A192: Spain
A193: Sri Lanka
A194: Sudan
A195: Suriname
A196: Swaziland
A197: Sweden
A198: Switzerland
A199: Syria
A200: Taiwan
... 28 more rows

Sheet Lists 2 (hidden)
A1: Column1 | B1: Column2 | C1: Column3 | D1: Column4 | E1: Column1 | H1: Solar Ranges | J1: Groundwater Depth | L1: Topography | N1: Ambient temperature | P1: Population Density
A2: Cropland, rainfed | B2: Highly Suitable | E2: Afghanistan | H2: 0 - 948 | J2: Up to 7m | L2: Mountainous | N2: Below 1C | P2: <1
A3: Cropland irrigated or post-flooding | B3: Highly Suitable | E3: Albania | H3: 949 - 1094 | J3: 7m - 25m | L3: Steep hills | N3: 1C to 30C | P3: 1 - 5
A4: Mosaic crop land with natural vegetation | B4: Highly Suitable | E4: Algeria | H4: 1095 - 1460 | J4: 25m - 50m | L4: Rolling hills | P4: 5 - 25
A5: Light forest open (tree cover up to 40%) | B5: Moderately Suitable | E5: American Samoa | H5: Above 1460 | J5: 50m - 100m | L5: Level | P5: 25 - 250
A6: Medium forest open to closed (tree cover above 40%) | B6: Marginally Suitable | E6: Andorra | J6: Beyond 100m | L6: Mixed various | P6: 250 - 1000
A7: Dense forest closed (tree cover above 40%) | B7: Not Suitable | E7: Angola | J7: Unknown | P7: >1000
A8: Shrubland | B8: Moderately Suitable | E8: Anguilla
A9: Grassland | B9: Moderately Suitable | E9: Antigua & Barbuda
A10: Lichens and mosses | B10: Marginally Suitable | E10: Argentina
A11: Semi arid sparse vegetation | B11: Moderately Suitable | E11: Armenia
A12: Flood plains fresh water | B12: Marginally Suitable | E12: Aruba
A13: Flood plains brackish water | B13: Not Suitable | E13: Australia
A14: Urban areas | B14: Not Suitable | E14: Austria
A15: Bare areas (sand dunes, gravel plains, etc) | B15: Marginally Suitable | E15: Azerbaijan
A16: Water bodies | B16: Not Suitable | E16: Bahamas, The
A17: Permanent snow and ice | B17: Not Suitable | E17: Bahrain
E18: Bangladesh
E19: Barbados
E20: Belarus
E21: Belgium
E22: Belize
E23: Benin
E24: Bermuda
E25: Bhutan
E26: Bolivia
E27: Bosnia & Herzegovina
E28: Botswana
E29: Brazil
E30: British Virgin Is.
E31: Brunei
E32: Bulgaria
E33: Burkina Faso
E34: Burma
E35: Burundi
E36: Cambodia
E37: Cameroon
E38: Canada
E39: Cape Verde
E40: Cayman Islands
E41: Central African Rep.
E42: Chad
E43: Chile
E44: China
E45: Colombia
E46: Comoros
E47: Congo, Dem. Rep.
E48: Congo, Repub. of the
E49: Cook Islands
E50: Costa Rica
E51: Cote d'Ivoire
E52: Croatia
E53: Cuba
E54: Cyprus
E55: Czech Republic
E56: Denmark
E57: Djibouti
E58: Dominica
E59: Dominican Republic
E60: East Timor
E61: Ecuador
E62: Egypt
E63: El Salvador
E64: Equatorial Guinea
E65: Eritrea
E66: Estonia
E67: Ethiopia
E68: Faroe Islands
E69: Fiji
E70: Finland
E71: France
E72: French Guiana
E73: French Polynesia
E74: Gabon
E75: Gambia, The
E76: Gaza Strip
E77: Georgia
E78: Germany
E79: Ghana
E80: Gibraltar
E81: Greece
E82: Greenland
E83: Grenada
E84: Guadeloupe
E85: Guam
E86: Guatemala
E87: Guernsey
E88: Guinea
E89: Guinea-Bissau
E90: Guyana
E91: Haiti
E92: Honduras
E93: Hong Kong
E94: Hungary
E95: Iceland
E96: India
E97: Indonesia
E98: Iran
E99: Iraq
E100: Ireland
E101: Isle of Man
E102: Israel
E103: Italy
E104: Jamaica
E105: Japan
E106: Jersey
E107: Jordan
E108: Kazakhstan
E109: Kenya
E110: Kiribati
E111: Korea, North
E112: Korea, South
E113: Kuwait
E114: Kyrgyzstan
E115: Laos
E116: Latvia
E117: Lebanon
E118: Lesotho
E119: Liberia
E120: Libya
E121: Liechtenstein
E122: Lithuania
E123: Luxembourg
E124: Macau
E125: Macedonia
E126: Madagascar
E127: Malawi
E128: Malaysia
E129: Maldives
E130: Mali
E131: Malta
E132: Marshall Islands
E133: Martinique
E134: Mauritania
E135: Mauritius
E136: Mayotte
E137: Mexico
E138: Micronesia, Fed. St.
E139: Moldova
E140: Monaco
E141: Mongolia
E142: Montserrat
E143: Morocco
E144: Mozambique
E145: Namibia
E146: Nauru
E147: Nepal
E148: Netherlands
E149: Netherlands Antilles
E150: New Caledonia
E151: New Zealand
E152: Nicaragua
E153: Niger
E154: Nigeria
E155: N. Mariana Islands
E156: Norway
E157: Oman
E158: Pakistan
E159: Palau
E160: Panama
E161: Papua New Guinea
E162: Paraguay
E163: Peru
E164: Philippines
E165: Poland
E166: Portugal
E167: Puerto Rico
E168: Qatar
E169: Reunion
E170: Romania
E171: Russia
E172: Rwanda
E173: Saint Helena
E174: Saint Kitts & Nevis
E175: Saint Lucia
E176: St Pierre & Miquelon
E177: Saint Vincent and the Grenadines
E178: Samoa
E179: San Marino
E180: Sao Tome & Principe
E181: Saudi Arabia
E182: Senegal
E183: Serbia
E184: Seychelles
E185: Sierra Leone
E186: Singapore
E187: Slovakia
E188: Slovenia
E189: Solomon Islands
E190: Somalia
E191: South Africa
E192: Spain
E193: Sri Lanka
E194: Sudan
E195: Suriname
E196: Swaziland
E197: Sweden
E198: Switzerland
E199: Syria
E200: Taiwan
... 28 more rows
